bitfinex/quotes_ETHUSD_20251009
["timestamp","ask_amount","ask_price","bid_price","bid_amount"]
[1759971755475,0.02773032,4507.7,4507.4,2.21856823]
[1759971755680,0.50053032,4507.7,4507.5,2.21850096]
[1759971756047,0.50053032,4507.7,4507.5,2.21847819]
[1759971756279,0.50053032,4507.7,4507.1,0.011]
[1759971757062,0.02773032,4507.7,4507.1,0.011]
[1759971757974,0.02773032,4507.7,4507.6,2.21847546]
[1759971758180,0.50053032,4507.7,4507.6,2.21847546]
[1759971758689,0.1124,4508.1,4507.8,2.21835417]
[1759971758888,17.045,4508.0,4507.8,2.21835417]
[1759971759391,17.045,4508.0,4507.5,2.21850099]
[1759971759562,17.045,4508.0,4507.8,2.21837116]
[1759971760290,17.045,4508.0,4507.9,2.21832782]
[1759971760660,17.874,4508.0,4507.8,2.21836194]
[1759971760878,0.02772909,4507.9,4507.8,2.21836194]
[1759971764460,0.002,4508.1,4508.0,2.21827861]
[1759971764690,8.641,4508.1,4508.0,2.21827861]
[1759971764890,0.002,4508.1,4508.0,2.21827861]
[1759971765072,8.641,4508.1,4508.0,2.21827861]
[1759971765457,0.002,4508.1,4508.0,5.63777454]
[1759971765679,8.64,4508.1,4508.0,5.85337454]
[1759971766479,8.64,4508.1,4508.0,6.66054819]
[1759971766683,8.64,4508.1,4508.0,3.35145226]
[1759971766862,8.64,4508.1,4508.0,2.32867861]
[1759971767593,8.639,4508.1,4508.0,2.32867861]
[1759971768060,8.639,4508.1,4508.0,0.1104]
[1759971768264,8.639,4508.1,4506.7,2.21891837]
[1759971768265,9.55237126,4508.1,4506.7,3.30909593]
[1759971768466,8.636,4508.0,4507.3,3.30909593]
[1759971768666,8.636,4508.0,4507.7,2.21840128]
[1759971768915,0.02772909,4507.9,4507.7,2.21840128]
[1759971769200,0.02772909,4507.9,4507.7,2.21841398]
[1759971769701,0.02772909,4507.9,4507.2,2.21867234]
[1759971769870,0.02772909,4507.9,4507.1,0.2266]
[1759971770071,0.02772909,4507.9,4507.6,2.21843041]
[1759971770693,0.02772909,4507.9,4507.1,0.2266]
[1759971770898,0.002,4508.1,4507.1,0.80204566]
[1759971771099,2.568,4508.0,4507.8,2.21836795]
[1759971771283,0.02772909,4507.9,4507.7,2.21841893]
[1759971771489,0.02772909,4507.9,4507.1,0.80204566]
[1759971771806,0.002,4508.1,4508.0,2.21827861]
[1759971771990,2.512,4508.1,4508.0,2.21827861]
[1759971772190,0.002,4508.1,4508.0,2.21827861]
[1759971772395,17.868,4508.1,4508.0,2.21827861]
[1759971773674,0.002,4508.1,4508.0,2.21827861]
[1759971773880,0.002,4508.1,4507.9,2.21830831]
[1759971773881,8.635,4508.1,4507.9,2.21830831]
[1759971774082,0.002,4508.1,4508.0,2.21827861]
[1759971774300,0.002,4508.1,4508.0,2.43387861]
[1759971774611,8.634,4508.1,4508.0,2.43387861]
[1759971775197,0.002,4508.1,4508.0,2.43387861]
[1759971775400,2.64,4508.1,4508.0,2.43387861]
[1759971775906,0.002,4508.1,4508.0,2.21827861]
[1759971776106,8.634,4508.1,4508.0,2.21827861]
[1759971776408,8.634,4508.1,4508.0,2.43387861]
[1759971777397,0.002,4508.1,4508.0,2.43387861]
[1759971777601,0.002,4508.1,4508.0,3.23001078]
[1759971778119,2.151,4508.1,4508.0,3.23001078]
[1759971778315,0.002,4508.1,4508.0,3.34041078]
[1759971778494,3.9,4508.1,4508.0,3.34041078]
[1759971778814,3.9,4508.1,4508.0,6.64950671]
[1759971779402,3.9,4508.1,4508.0,3.34041078]
[1759971779607,3.9,4508.1,4508.0,6.64950671]
[1759971780478,3.9,4508.1,4508.0,0.1104]
[1759971780680,4.3632,4508.1,4508.0,0.1104]
[1759971780889,4.3632,4508.1,4507.1,2.22969569]
[1759971780890,4.3632,4508.1,4507.4,2.21853745]
[1759971781111,4.3632,4508.1,4507.6,0.1104]
[1759971781112,0.02772848,4508.0,4507.6,0.1104]
[1759971781293,0.4632,4507.9,4507.6,0.1104]
[1759971781492,0.4632,4507.9,4507.1,0.011]
[1759971781493,0.49092971,4507.8,4507.1,0.011]
[1759971781803,2.21842756,4507.7,4507.1,0.011]
[1759971781979,0.1104,4507.5,4507.1,0.011]
[1759971782185,0.02773217,4507.4,4507.1,0.011]
[1759971782403,0.4632,4507.3,4507.1,0.011]
[1759971782610,0.0277334,4507.2,4507.1,0.011]
[1759971783110,0.02773217,4507.4,4507.1,0.011]
[1759971783297,0.66249285,4507.9,4507.3,2.21862312]
[1759971783616,0.66249285,4507.9,4507.1,0.1214]
[1759971783617,9.232,4507.7,4507.1,0.1214]
[1759971783828,0.02773094,4507.6,4507.1,0.1214]
[1759971783995,6.337,4507.5,4507.3,2.21857575]
[1759971784188,0.02773217,4507.4,4507.2,2.218665]
[1759971784388,0.02773217,4507.4,4507.1,0.1214]
[1759971784389,0.49093217,4507.4,4507.1,2.34011336]
[1759971784618,0.49093217,4507.4,4507.2,2.21864902]
[1759971784802,0.02773217,4507.4,4507.1,0.1214]
[1759971785404,0.02773217,4507.4,4507.2,2.21867234]
[1759971785624,0.02773217,4507.4,4507.1,0.1214]
[1759971786313,0.4632,4507.3,4507.1,0.011]
[1759971786490,0.0277334,4507.2,4507.1,2.22972157]
[1759971786695,0.49093217,4507.4,4507.1,2.22972157]
[1759971787007,0.4632,4507.3,4507.1,0.011]
[1759971787210,0.0277334,4507.2,4507.1,0.011]
[1759971788901,0.0277334,4507.2,4507.1,2.22972157]
[1759971789090,0.0277334,4507.2,4507.1,0.011]
[1759971789823,0.0277334,4507.2,4507.1,2.22972157]
[1759971791033,0.4909334,4507.2,4507.1,2.22972157]
[1759971791335,1.41556674,4507.2,4507.1,0.011]
[1759971791542,0.02773217,4507.4,4507.1,0.011]
[1759971791839,9.233,4508.0,4507.9,2.21832562]
[1759971791985,0.002,4508.1,4508.0,2.21827861]
[1759971792389,2.907,4508.1,4508.0,2.21827861]
[1759971792639,0.002,4508.1,4508.0,2.21827861]
[1759971792941,0.002,4508.1,4508.0,6.31859972]
[1759971793149,0.002,4508.1,4508.0,11.54769565]
[1759971793493,0.002,4508.6,4508.5,7.44712853]
[1759971793691,0.002,4508.6,4508.5,7.55752853]
[1759971793921,0.002,4508.6,4508.5,4.4640326]
[1759971794241,0.002,4508.6,4508.5,5.13224896]
[1759971794458,0.002,4508.6,4508.5,4.91664896]
[1759971794605,0.002,4508.6,4508.5,4.2484326]
[1759971795746,0.002,4508.6,4508.5,4.4640326]
[1759971795915,2.447,4508.6,4508.5,4.4640326]
[1759971796114,0.002,4508.6,4508.5,4.4640326]
[1759971797717,0.002,4508.6,4508.5,4.2484326]
[1759971797922,0.002,4508.6,4508.5,5.11068896]
[1759971803722,0.002,4508.6,4508.5,2.3284326]
[1759971806447,0.4399,4508.6,4508.5,2.3284326]
[1759971806629,0.4399,4508.6,4506.9,0.2156]
[1759971806828,9.2577254,4508.5,4507.9,2.21828748]
[1759971807034,0.46562602,4508.4,4508.0,2.21827514]
[1759971807251,10.0537026,4508.3,4508.0,2.21827514]
[1759971807433,0.46562725,4508.2,4508.0,2.21827514]
[1759971807628,0.4379,4508.1,4508.0,2.21827514]
[1759971807834,0.4379,4508.1,4508.0,2.21827861]
[1759971808068,0.4379,4508.1,4507.9,0.1104]
[1759971808264,0.4379,4508.0,4507.9,0.1104]
[1759971808423,0.46562848,4508.0,4507.9,2.32872782]
[1759971808765,1.37569133,4508.0,4507.9,0.1104]
[1759971808918,1.37569133,4508.0,4506.6,0.001]
[1759971808919,1.48609133,4508.0,4507.2,0.1104]
[1759971809125,0.2313,4507.9,4507.3,2.21862312]
[1759971809350,0.46562971,4507.8,4507.4,2.21856918]
[1759971809549,13.35873032,4507.7,4507.5,0.1104]
[1759971809753,4.101,4507.6,4507.5,0.1104]
[1759971810370,4.5389,4507.6,4507.5,2.32892468]
[1759971811491,4.5389,4507.6,4507.5,0.1104]
[1759971812560,4.5389,4507.6,4507.1,0.1214]
[1759971812761,0.46563155,4507.5,4507.3,2.21860606]
[1759971812984,0.4379,4507.4,4507.3,2.21860606]
[1759971813197,0.4379,4507.4,4507.1,0.1214]
[1759971813398,0.02773155,4507.5,4507.2,2.21867234]
[1759971813603,0.4379,4507.3,4507.2,2.21867234]
[1759971815895,0.4379,4507.3,4507.1,0.1214]
[1759971816091,0.4379,4507.3,4507.2,2.21867234]
[1759971816297,6.7659,4507.3,4507.2,2.21867234]
[1759971817812,6.7659,4507.3,4507.1,0.1214]
[1759971818015,0.0277334,4507.2,4507.1,2.34012157]
[1759971818381,0.4656334,4507.2,4507.1,2.34012157]
[1759971819198,0.0277334,4507.2,4507.1,2.34012157]
[1759971820097,0.0277334,4507.2,4507.1,0.1214]
[1759971820498,0.4656334,4507.2,4507.1,2.34012157]
[1759971821623,0.4656334,4507.2,4507.1,0.011]
[1759971821850,0.4656334,4507.2,4507.1,2.22972157]
[1759971822115,0.4656334,4507.2,4507.1,0.011]
[1759971826213,0.4656334,4507.2,4507.1,2.22972157]
[1759971826416,0.1104,4507.6,4507.5,2.21852468]
[1759971826631,17.9744,4507.6,4507.1,0.011]
[1759971826810,17.9744,4507.6,4507.4,2.21855859]
[1759971827010,0.5749,4507.6,4507.5,2.21852468]
[1759971827213,0.002,4508.6,4507.1,0.011]
[1759971827412,0.1104,4508.1,4507.4,0.1104]
[1759971827710,0.1104,4508.1,4508.0,2.21827861]
[1759971827914,0.1124,4508.6,4508.3,2.21811396]
[1759971828115,0.1124,4508.6,4508.5,2.2180326]
[1759971828433,2.855,4508.6,4508.5,2.2180326]
[1759971828614,8.637,4508.6,4508.5,2.9876488]
[1759971829025,0.002,4508.6,4508.5,2.9876488]
[1759971829225,2.31,4508.6,4508.5,2.9876488]
[1759971829427,2.543,4508.6,4508.5,2.9876488]
[1759971829838,0.002,4508.6,4508.5,4.9076488]
[1759971830351,0.002,4508.6,4508.5,14.41487987]
[1759971830548,0.002,4509.6,4509.5,2.21754074]
[1759971830760,0.002,4509.6,4509.5,0.44351544]
[1759971830916,0.002,4509.6,4509.5,2.43314074]
[1759971831410,0.137,4509.6,4509.5,2.21754074]
[1759971831613,2.445,4509.6,4509.5,2.21754074]
[1759971833116,0.002,4509.6,4509.5,2.21754074]
[1759971833431,8.637,4509.6,4509.5,2.66105833]
[1759971833838,6.328,4509.6,4509.5,2.87665833]
[1759971834225,6.328,4509.6,4509.5,2.66105833]
[1759971834423,6.328,4509.6,4508.7,0.2156]
[1759971834629,6.328,4509.6,4509.5,2.21754074]
[1759971834630,0.002,4509.6,4509.5,2.21754074]
[1759971834831,6.328,4509.6,4509.5,2.43314074]
[1759971835146,0.002,4509.6,4509.5,2.43314074]
[1759971840839,0.002,4510.1,4510.0,2.2172949]
[1759971841034,0.002,4510.1,4510.0,4.66142439]
[1759971841235,0.002,4510.1,4510.0,4.87702439]
[1759971848452,0.03770451,4511.9,4510.0,4.87702439]
[1759971848453,1e-08,4510.9,4510.1,1.92]
[1759971848659,1e-08,4510.9,4510.1,2.1356]
[1759971848962,1e-08,4510.9,4510.8,2.21690165]
[1759971849354,1e-08,4510.9,4510.8,2.43250165]
[1759971851058,1e-08,4510.9,4510.2,1.83725606]
[1759971851380,1e-08,4510.9,4510.8,2.21690165]
[1759971851994,1e-08,4510.9,4509.9,0.2156]
[1759971852192,1e-08,4510.9,4509.1,0.001]
[1759971852193,9.054,4510.8,4509.1,0.001]
[1759971853394,0.433,4510.4,4509.1,0.24444558]
[1759971853594,0.02771434,4510.3,4509.1,0.24444558]
[1759971853756,0.433,4510.2,4509.1,0.24444558]
[1759971853957,0.02771557,4510.1,4509.2,0.24622248]
[1759971854160,2.23,4510.0,4509.2,0.24622248]
[1759971854356,2.306,4509.9,4509.2,0.24622248]
[1759971854565,2.306,4509.9,4509.7,2.21743182]
[1759971854765,0.46071741,4509.8,4509.1,0.001]
[1759971854978,0.46071741,4509.8,4509.7,2.2174424]
[1759971855174,0.46071741,4509.8,4509.5,2.21749508]
[1759971855391,0.46071741,4509.8,4509.6,2.21748529]
[1759971857103,0.46071741,4509.8,4509.7,2.2174424]
[1759971858167,0.02771741,4509.8,4509.7,2.2174424]
[1759971858368,0.002,4510.1,4510.0,2.2172949]
[1759971858690,8.619,4510.1,4510.0,2.2172949]
[1759971859067,0.002,4510.1,4510.0,2.2172949]
[1759971859269,8.618,4510.1,4510.0,2.2172949]
[1759971859682,0.002,4510.1,4510.0,2.2172949]
[1759971859995,8.618,4510.1,4510.0,2.2172949]
[1759971860897,0.002,4510.1,4510.0,2.2172949]
[1759971861099,0.002,4510.1,4510.0,2.3276949]
[1759971861305,2.738,4510.1,4510.0,2.3276949]
[1759971864005,0.002,4510.1,4510.0,2.3276949]
[1759971864201,8.616,4510.1,4510.0,2.3276949]
[1759971865117,8.616,4510.1,4510.0,0.1104]
[1759971865741,8.616,4510.1,4510.0,2.3276949]
[1759971865903,8.616,4510.1,4510.0,0.1104]
[1759971866215,9.0785,4510.1,4510.0,0.1104]
[1759971866992,9.0785,4510.1,4509.1,0.001]
[1759971867202,0.02771618,4510.0,4509.7,2.32782317]
[1759971867387,0.49021618,4510.0,4509.8,2.21739219]
[1759971867581,0.49021618,4510.0,4509.9,2.21734406]
[1759971867819,0.02771618,4510.0,4509.9,2.21734406]
[1759971868287,0.02771618,4510.0,4509.8,2.21737941]
[1759971868797,0.02771618,4510.0,4509.9,2.21734406]
[1759971870216,0.002,4510.1,4510.0,2.2172949]
[1759971870403,2.308,4510.1,4510.0,2.8873988]
[1759971870720,2.717,4510.1,4510.0,2.8873988]
[1759971871092,2.717,4510.1,4510.0,2.6717988]
[1759971872345,3.1795,4510.1,4509.9,0.1104]
[1759971872638,0.49021618,4510.0,4509.9,2.32770185]
[1759971872819,0.02771618,4510.0,4509.9,2.32770185]
[1759971875732,0.02771618,4510.0,4509.9,0.1104]
[1759971876037,0.5729,4510.0,4509.6,2.21749148]
[1759971876196,0.0277168,4509.9,4509.6,2.21749148]
[1759971876836,0.0277168,4509.9,4509.8,0.001]
[1759971877258,0.4902168,4509.9,4509.8,0.001]
[1759971881125,1.05117848,4509.9,4509.8,0.001]
[1759971884274,0.7194168,4509.9,4509.8,0.001]
[1759971886378,2.93676086,4509.9,4509.8,0.001]
[1759971886586,0.7194168,4509.9,4509.8,0.001]
[1759971887957,6.46288853,4509.9,4509.8,0.001]
[1759971888173,6.43517173,4509.9,4509.8,0.001]
[1759971888575,7.5831552,4509.9,4509.8,0.001]
[1759971891342,9.5031552,4509.9,4509.8,0.001]
[1759971891543,9.97609628,4509.9,4509.8,0.001]
[1759971893645,10.18125497,4509.9,4509.8,0.001]
[1759971894171,9.97609628,4509.9,4509.8,0.001]
[1759971897144,10.06491618,4509.9,4509.8,0.001]
[1759971897478,35.52491618,4509.9,4509.8,0.001]
[1759971897780,37.83191618,4509.9,4509.8,0.001]
[1759971900645,38.03688307,4509.9,4509.8,0.001]
[1759971900961,8.0773554,4509.9,4509.8,0.001]
[1759971901166,28.80688307,4509.9,4509.8,0.001]
[1759971902008,31.69941074,4509.9,4509.8,0.001]
[1759971902165,29.08978953,4509.9,4509.8,0.001]
[1759971902372,38.03788307,4509.9,4509.8,0.001]
[1759971903074,41.71594204,4509.9,4509.8,0.001]
[1759971903281,41.71594204,4509.9,4509.1,0.001]
[1759971903282,2.21761878,4509.4,4509.1,1e-08]
[1759971903481,7.66381595,4509.2,4509.1,1e-08]
[1759971903686,8.34172392,4509.2,4509.1,1e-08]
[1759971903862,8.81012392,4509.2,4509.1,1e-08]
[1759971904063,8.89897322,4509.2,4509.1,1e-08]
[1759971904389,10.04695669,4509.2,4509.1,1e-08]
[1759971904586,10.63694903,4509.2,4509.1,1e-08]
[1759971905187,10.6365422,4509.2,4509.1,1e-08]
[1759971906389,10.04695669,4509.2,4509.1,1e-08]
[1759971906903,10.04664258,4509.2,4509.1,1e-08]
[1759971910014,37.12264258,4509.2,4509.1,1e-08]
[1759971915522,37.71222809,4509.2,4509.1,1e-08]
[1759971916704,37.71022809,4509.2,4509.1,1e-08]
[1759971918215,37.12064258,4509.2,4509.1,1e-08]
[1759971921032,37.90617388,4509.2,4509.1,1e-08]
[1759971921216,37.12076929,4509.2,4509.1,1e-08]
[1759971925164,37.11976929,4509.2,4509.1,1e-08]
[1759971925535,10.04676929,4509.2,4509.1,1e-08]
[1759971925732,9.41316929,4509.2,4509.1,1e-08]
[1759971925944,21.87718582,4509.2,4509.1,1e-08]
[1759971926241,6.34518582,4509.2,4509.1,1e-08]
[1759971926552,20.52608828,4509.2,4509.1,1e-08]
[1759971927056,22.44608828,4509.2,4509.1,1e-08]
[1759971927355,22.91888102,4509.2,4509.1,1e-08]
[1759971927856,23.75767532,4509.2,4509.1,1e-08]
[1759971928632,24.34830411,4509.2,4509.1,1e-08]
[1759971929255,23.75767532,4509.2,4509.1,1e-08]
[1759971929430,24.34900889,4509.2,4509.1,1e-08]
[1759971929634,23.75767532,4509.2,4509.1,1e-08]
[1759971929951,24.34900464,4509.2,4509.1,1e-08]
[1759971930826,23.75767532,4509.2,4509.1,1e-08]
[1759971931049,5.91767532,4509.2,4509.1,1e-08]
[1759971931351,32.98967532,4509.2,4509.1,1e-08]
[1759971931648,33.07873246,4509.2,4509.1,1e-08]
[1759971931856,37.21900937,4509.2,4509.1,1e-08]
[1759971932041,37.62401912,4509.2,4509.1,1e-08]
[1759971933249,36.43161188,4509.2,4509.1,1e-08]
[1759971935563,4.7717802,4508.2,4508.1,1e-08]
[1759971935729,17.40786595,4508.2,4508.1,1e-08]
[1759971935929,17.85666595,4508.2,4508.1,1e-08]
[1759971936247,18.53682751,4508.2,4508.1,1e-08]
[1759971937844,9.92982751,4508.2,4508.1,1e-08]
[1759971938067,37.00282751,4508.2,4508.1,1e-08]
[1759971939970,37.00261011,4508.2,4508.1,1e-08]
[1759971941249,37.00246777,4508.2,4508.1,1e-08]
[1759971942547,36.41133834,4508.2,4508.1,1e-08]
[1759971942742,36.7969466,4508.2,4508.1,1e-08]
[1759971942958,35.08210109,4508.2,4508.1,1e-08]
[1759971943158,37.00210109,4508.2,4508.1,1e-08]
[1759971944247,36.41126621,4508.2,4508.1,1e-08]
[1759971944778,37.00210109,4508.2,4508.1,1e-08]
[1759971944966,36.41126621,4508.2,4508.1,1e-08]
[1759971945579,37.00210109,4508.2,4508.1,1e-08]
[1759971946682,5.35378679,4508.2,4508.1,1e-08]
[1759971946979,33.05838679,4508.2,4508.1,1e-08]
[1759971947352,33.64922167,4508.2,4508.1,1e-08]
[1759971948402,33.05838679,4508.2,4508.1,1e-08]
[1759971949887,5.35378679,4508.2,4508.1,1e-08]
[1759971950049,5.26492743,4508.2,4508.1,1e-08]
[1759971950383,22.89677294,4508.2,4508.1,1e-08]
[1759971950694,5.69337294,4508.2,4508.1,0.00100001]
[1759971950880,23.53337294,4508.2,4508.1,0.00100001]
[1759971951187,23.53537294,4508.2,4508.1,0.00100001]
[1759971951570,5.69537294,4508.2,4508.1,0.00100001]
[1759971951771,23.53537294,4508.2,4508.1,0.00100001]
[1759971952396,21.22637294,4508.2,4508.1,0.00100001]
[1759971952699,23.53437294,4508.2,4508.1,0.00100001]
[1759971953281,11.99237294,4508.2,4508.1,0.00100001]
[1759971953609,23.53437294,4508.2,4508.1,0.00100001]
[1759971957278,5.78422164,4508.2,4508.1,0.00100001]
[1759971957474,16.2198289,4508.2,4508.1,0.00100001]
[1759971957802,23.0595802,4508.2,4508.1,0.00100001]
[1759971957985,22.4259802,4508.2,4508.1,0.00100001]
[1759971958310,23.53304259,4508.2,4508.1,0.00100001]
[1759971959002,5.2225802,4508.2,4508.1,0.00100001]
[1759971959304,23.0585802,4508.2,4508.1,0.00100001]
[1759971959480,12.2165802,4508.2,4508.1,0.00100001]
[1759971959689,23.7585802,4508.2,4508.1,0.00100001]
[1759971960310,0.702,4508.2,4508.1,0.00100001]
[1759971960490,21.2264802,4508.2,4508.1,0.00100001]
[1759971960807,21.8600802,4508.2,4508.1,0.00100001]
[1759971962993,19.6419,4508.2,4508.1,0.00100001]
[1759971963199,21.8600802,4508.2,4508.1,0.00100001]
[1759971964080,4.0240802,4508.2,4508.1,0.00100001]
[1759971964275,4.05180745,4508.2,4508.1,0.00100001]
[1759971964707,1.83362725,4508.2,4508.1,0.00100001]
[1759971965010,17.35962725,4508.2,4508.1,0.00100001]
[1759971965311,19.6399,4508.2,4508.1,0.00100001]
[1759971965480,1.8059,4508.2,4508.1,0.00100001]
[1759971965679,19.66762725,4508.2,4508.1,0.00100001]
[1759971965881,19.6399,4508.2,4508.1,0.00100001]
[1759971966209,19.6389,4508.2,4508.1,0.00100001]
[1759971967516,1.3356,4508.2,4508.1,0.00100001]
[1759971967732,0.702,4508.2,4508.1,0.00100001]
[1759971967939,5.267,4508.2,4508.1,0.00100001]
[1759971968223,16.808,4508.2,4508.1,0.00100001]
[1759971968508,18.535,4508.2,4508.1,0.00100001]
[1759971969500,19.0053,4508.2,4508.1,0.00100001]
[1759971969902,21.8570802,4508.2,4508.1,0.00100001]
[1759971971516,19.6389,4508.2,4508.1,0.00100001]
[1759971972313,21.8570802,4508.2,4508.1,0.00100001]
[1759971974511,23.7770802,4508.2,4508.1,0.00100001]
[1759971980730,19.2509,4508.2,4508.1,0.00100001]
[1759971980930,3.7259,4508.2,4508.1,0.00100001]
[1759971981139,19.66562725,4508.2,4508.1,0.00100001]
[1759971981293,19.6379,4508.2,4508.1,0.00100001]
[1759971981633,21.8560802,4508.2,4508.1,0.00100001]
[1759971982213,19.6379,4508.2,4508.1,0.00100001]
[1759971982836,1.8059,4508.2,4508.1,0.00100001]
[1759971983038,0.702,4508.2,4508.1,2.21922941]
[1759971983224,17.612,4508.2,4508.1,0.00100001]
[1759971983540,0.702,4508.2,4508.1,0.00100001]
[1759971983729,8.601,4508.2,4508.1,2.45220619]
[1759971984709,8.601,4508.2,4508.1,0.23397679]
[1759971984913,8.601,4508.2,4508.1,0.00100001]
[1759971986325,11.9005802,4508.2,4508.1,0.00100001]
[1759971986536,9.6824,4508.2,4508.1,0.00100001]
[1759971986735,11.9005802,4508.2,4508.1,0.00100001]
[1759971987720,0.002,4508.2,4508.1,0.00100001]
[1759971988018,13.0838,4508.2,4508.1,0.00100001]
[1759971988218,2.6679802,4508.2,4508.1,0.00100001]
[1759971988445,18.30952725,4508.2,4508.1,0.00100001]
[1759971988752,21.1335802,4508.2,4508.1,0.00100001]
[1759971990450,18.9154,4508.2,4508.1,0.00100001]
[1759971990652,21.1335802,4508.2,4508.1,0.00100001]
[1759971992731,23.0535802,4508.2,4508.1,0.00100001]
[1759971992939,23.73281731,4508.2,4508.1,0.00100001]
[1759971993672,21.42481731,4508.2,4508.1,0.00100001]
[1759971993877,23.73281731,4508.2,4508.1,0.00100001]
[1759971994348,24.43281731,4508.2,4508.1,0.00100001]
[1759971996135,25.02494452,4508.2,4508.1,0.00100001]
[1759971997307,27.32799692,4508.2,4508.1,0.00100001]
[1759971997596,34.25799692,4508.2,4508.1,0.00100001]
[1759971997772,36.56599692,4508.2,4508.1,0.00100001]
[1759971998174,40.14215797,4508.2,4508.1,0.00100001]
[1759971998396,40.14071379,4508.2,4508.1,0.00100001]
[1759971998608,37.24553418,4508.2,4508.1,0.00100001]
[1759971999101,36.65485115,4508.2,4508.1,0.00100001]
[1759971999285,37.24538323,4508.2,4508.1,0.00100001]
[1759971999682,34.93838323,4508.2,4508.1,0.00100001]
[1759971999894,10.17538323,4508.2,4508.1,0.00100001]
[1759972000203,37.24638323,4508.2,4508.1,0.00100001]
[1759972001380,36.65585115,4508.2,4508.1,0.00100001]
[1759972001773,9.58485115,4508.2,4508.1,0.00100001]
[1759972001973,37.89420165,4508.2,4508.1,0.00100001]
[1759972002508,37.89357558,4508.2,4508.1,0.00100001]
[1759972002686,10.82357558,4508.2,4508.1,0.00100001]
[1759972002868,37.89357558,4508.2,4508.1,0.00100001]
[1759972003571,7.92839597,4508.2,4508.1,0.00100001]
[1759972003777,26.35057558,4508.2,4508.1,0.00100001]
[1759972004001,28.65857558,4508.2,4508.1,0.00100001]
[1759972004195,10.12357558,4508.2,4508.1,0.00100001]
[1759972004602,27.75562509,4508.2,4508.1,0.00100001]
[1759972005319,9.91862509,4508.2,4508.1,0.00100001]
[1759972005501,27.75562509,4508.2,4508.1,0.00100001]
[1759972005805,9.91862509,4508.2,4508.1,0.00100001]
[1759972006000,27.75462509,4508.2,4508.1,0.00100001]
[1759972008211,25.44662509,4508.2,4508.1,0.00100001]
[1759972008389,27.75462509,4508.2,4508.1,0.00100001]
[1759972008911,27.75362509,4508.2,4508.1,0.00100001]
[1759972009908,9.91862509,4508.2,4508.1,0.00100001]
[1759972010586,27.75262509,4508.2,4508.1,0.00100001]
[1759972011108,16.21062509,4508.2,4508.1,0.00100001]
[1759972011415,27.75262509,4508.2,4508.1,0.00100001]
[1759972012207,9.91862509,4508.2,4508.1,0.00100001]
[1759972012380,27.75262509,4508.2,4508.1,0.00100001]
[1759972012580,9.91862509,4508.2,4508.1,0.00100001]
[1759972012980,27.75262509,4508.2,4508.1,0.00100001]
[1759972014586,16.21062509,4508.2,4508.1,0.00100001]
[1759972014788,9.91862509,4508.2,4508.1,0.00100001]
[1759972015096,27.95763285,4508.2,4508.1,0.00100001]
[1759972015696,30.85281246,4508.2,4508.1,0.00100001]
[1759972016111,30.6478047,4508.2,4508.1,0.00100001]
[1759972016283,30.85288941,4508.2,4508.1,0.00100001]
[1759972016486,30.8529626,4508.2,4508.1,0.00100001]
[1759972016684,30.6478047,4508.2,4508.1,0.00100001]
[1759972017002,27.75262509,4508.2,4508.1,0.00100001]
[1759972017404,3.56591478,4508.2,4508.1,0.00100001]
[1759972017604,11.63285423,4508.2,4508.1,0.00100001]
[1759972017790,0.09085423,4508.2,4508.1,0.00100001]
[1759972018000,17.92585423,4508.2,4508.1,0.00100001]
[1759972019913,15.61785423,4508.2,4508.1,0.00100001]
[1759972020111,17.92585423,4508.2,4508.1,0.00100001]
[1759972020415,20.59303443,4508.2,4508.1,0.00100001]
[1759972020914,0.09085423,4508.2,4508.1,0.00100001]
[1759972021125,3.393,4508.2,4508.1,2.32962941]
[1759972021297,3.393,4508.2,4508.1,0.78179312]
[1759972021495,3.393,4508.2,4508.1,3.00002252]
[1759972021496,2.31,4508.2,4508.1,3.00002252]
[1759972021718,8.608,4508.2,4508.1,3.00002252]
[1759972022619,6.299,4508.2,4508.1,3.00002252]
[1759972022833,0.002,4508.2,4508.1,3.00002252]
[1759972023123,0.024,4508.2,4508.1,5.89520213]
[1759972023312,0.002,4508.2,4508.1,3.00002252]
[1759972023922,0.057,4508.2,4508.1,3.00002252]
[1759972025322,0.057,4508.2,4508.1,0.00100001]
[1759972025323,2.30290745,4508.2,4508.1,0.00100001]
[1759972025523,2.75190745,4508.2,4508.1,0.00100001]
[1759972025820,2.97850745,4508.2,4508.1,0.00100001]
[1759972026524,3.61210745,4508.2,4508.1,0.00100001]
[1759972026712,6.64648687,4508.2,4508.1,0.00100001]
[1759972026912,6.61875962,4508.2,4508.1,0.00100001]
[1759972027843,26.18355981,4508.2,4508.1,0.00100001]
[1759972029528,26.18255981,4508.2,4508.1,0.00100001]
[1759972030415,14.64155981,4508.2,4508.1,0.00100001]
[1759972030745,26.18255981,4508.2,4508.1,0.00100001]
[1759972032008,23.87455981,4508.2,4508.1,0.00100001]
[1759972032209,26.18255981,4508.2,4508.1,0.00100001]
[1759972034211,14.64055981,4508.2,4508.1,0.00100001]
[1759972034413,26.18155981,4508.2,4508.1,0.00100001]
[1759972034613,23.87255981,4508.2,4508.1,0.00100001]
[1759972034850,26.18055981,4508.2,4508.1,0.00100001]
[1759972037948,5.4493802,4508.2,4508.1,0.00100001]
[1759972038142,26.17955981,4508.2,4508.1,0.00100001]
[1759972038723,14.63855981,4508.2,4508.1,0.00100001]
[1759972038923,26.17955981,4508.2,4508.1,0.00100001]
[1759972040230,26.17855981,4508.2,4508.1,0.00100001]
[1759972042139,29.07373942,4508.2,4508.1,0.00100001]
[1759972042366,29.7507362,4508.2,4508.1,0.00100001]
[1759972044715,30.34126828,4508.2,4508.1,0.00100001]
[1759972045002,2.85202624,4507.7,4507.6,0.001]
[1759972045159,15.17497132,4507.7,4507.6,0.001]
[1759972045352,15.17497132,4507.7,4507.1,0.011]
[1759972045354,0.6336,4507.5,4507.1,0.011]
[1759972045579,0.6336,4507.5,4506.1,0.01]
[1759972045580,2.21896255,4506.7,4506.1,0.01]
[1759972045780,7.75677961,4506.2,4506.1,0.01]
[1759972046116,16.28094431,4506.2,4506.1,0.01]
[1759972046293,18.28425559,4506.2,4506.1,0.01]
[1759972046653,18.28425559,4506.2,4505.1,0.01]
[1759972046654,2.85325728,4505.2,4505.1,0.01]